bitfinex-derivatives/quotes_BTCF0:USTF0_20251011
["timestamp","ask_amount","ask_price","bid_price","bid_amount"]
[1760168282622,0.01321,110700.0,110680.0,0.7212575]
[1760168282823,0.01321,110700.0,110680.0,0.8115176]
[1760168283022,0.01321,110710.0,110690.0,0.4510514]
[1760168283218,0.01321,110720.0,110700.0,0.3604575]
[1760168283419,0.3608,110720.0,110700.0,0.7604575]
[1760168283620,0.37401,110730.0,110710.0,0.3604575]
[1760168284025,0.37401,110720.0,110710.0,0.3604575]
[1760168284327,0.37401,110730.0,110710.0,0.3604575]
[1760168284528,0.01321,110720.0,110710.0,0.3604575]
[1760168284832,0.01321,110710.0,110700.0,0.7212575]
[1760168285126,0.01421,110720.0,110700.0,0.7212575]
[1760168285326,0.01421,110720.0,110700.0,1.1212575]
[1760168285627,0.001,110720.0,110700.0,1.27581997]
[1760168285823,0.001,110720.0,110710.0,0.3608]
[1760168286024,0.37401,110730.0,110710.0,0.3608]
[1760168286723,0.01321,110720.0,110710.0,0.3608]
[1760168287122,0.01321,110720.0,110710.0,0.42511947]
[1760168287318,0.37401,110740.0,110710.0,0.82511947]
[1760168287525,0.01321,110760.0,110730.0,0.3608]
[1760168287719,0.37401,110770.0,110750.0,0.3604575]
[1760168287923,0.01321,110770.0,110750.0,0.45066]
[1760168288124,0.37401,110780.0,110760.0,0.0901944]
[1760168288125,0.01321,110780.0,110760.0,0.0901944]
[1760168288326,0.01321,110780.0,110770.0,0.3604575]
[1760168289030,0.37401,110780.0,110770.0,0.3604575]
[1760168289230,0.37501,110780.0,110770.0,0.3604575]
[1760168289429,0.77501,110780.0,110770.0,0.3604575]
[1760168289729,0.01421,110780.0,110770.0,0.3604575]
[1760168289924,0.37401,110780.0,110770.0,0.42477697]
[1760168290123,0.37401,110780.0,110770.0,0.3604575]
[1760168290831,0.01321,110770.0,110760.0,0.42477697]
[1760168291428,0.01321,110770.0,110760.0,0.82477697]
[1760168292132,0.01321,110770.0,110750.0,0.42511947]
[1760168292133,0.37401,110770.0,110750.0,0.42511947]
[1760168292327,0.37401,110770.0,110760.0,0.3604575]
[1760168293127,0.01321,110770.0,110760.0,0.3604575]
[1760168294230,0.01321,110760.0,110750.0,0.3608]
[1760168294528,0.01321,110760.0,110750.0,0.7212575]
[1760168294928,0.01321,110760.0,110750.0,0.78557697]
[1760168295132,0.01321,110760.0,110750.0,0.7212575]
[1760168295730,0.01321,110770.0,110750.0,1.1212575]
[1760168296030,0.01336,110800.0,110780.0,0.0901786]
[1760168296234,0.01336,110800.0,110790.0,0.3604575]
[1760168296428,1.87416,110800.0,110790.0,0.3604575]
[1760168296624,0.01336,110770.0,110760.0,0.3608]
[1760168296824,0.01336,110770.0,110750.0,0.450999]
[1760168297136,0.01336,110740.0,110730.0,0.3604575]
[1760168297431,0.37416,110740.0,110730.0,0.3604575]
[1760168298032,0.77416,110740.0,110730.0,0.3604575]
[1760168298430,0.01336,110720.0,110710.0,0.42477697]
[1760168298625,0.01336,110710.0,110700.0,0.3604575]
[1760168298829,0.37416,110710.0,110700.0,0.3604575]
[1760168299033,0.37416,110710.0,110700.0,0.42469272]
[1760168299231,0.37416,110710.0,110700.0,0.42471199]
[1760168299533,0.77416,110710.0,110700.0,0.06425449]
[1760168299734,1.13496,110710.0,110700.0,0.06425449]
[1760168300234,1.13396,110710.0,110700.0,0.06425449]
[1760168300433,1.2241956,110710.0,110700.0,0.06425449]
[1760168300630,0.01336,110700.0,110690.0,0.06425449]
[1760168300830,0.37416,110700.0,110690.0,0.06425449]
[1760168301226,0.01336,110690.0,110680.0,0.08062338]
[1760168301436,0.3608,110690.0,110680.0,0.44108088]
[1760168301634,0.01336,110700.0,110680.0,0.80188088]
[1760168301831,0.01236,110710.0,110690.0,0.08051595]
[1760168302038,0.37316,110710.0,110700.0,0.3604575]
[1760168302434,0.37416,110710.0,110700.0,0.4507012]
[1760168302639,0.01336,110730.0,110710.0,0.0902342]
[1760168302838,0.01336,110730.0,110720.0,0.3604575]
[1760168303035,0.01336,110720.0,110710.0,0.42480724]
[1760168303235,0.37416,110720.0,110710.0,0.06434974]
[1760168304139,0.01336,110710.0,110690.0,0.89202495]
[1760168304335,0.3608,110700.0,110690.0,0.44097345]
[1760168304536,0.37416,110700.0,110690.0,0.3604575]
[1760168304841,0.01336,110690.0,110680.0,0.44108088]
[1760168305441,0.01236,110690.0,110680.0,0.44108088]
[1760168305636,0.01336,110700.0,110680.0,0.84108088]
[1760168305831,0.37416,110700.0,110680.0,0.51523953]
[1760168306030,0.01336,110690.0,110680.0,0.42497983]
[1760168306235,0.01336,110690.0,110680.0,0.36056493]
[1760168306640,0.01336,110690.0,110680.0,0.42500534]
[1760168308138,0.01336,110700.0,110680.0,0.42500534]
[1760168308343,0.01336,110700.0,110690.0,0.06444041]
[1760168308537,0.01336,110690.0,110680.0,0.42500534]
[1760168310242,0.01336,110690.0,110680.0,0.36056493]
[1760168310439,0.01336,110690.0,110680.0,1.21162503]
[1760168310739,0.01336,110700.0,110680.0,1.21162103]
[1760168310940,0.01336,110700.0,110690.0,0.42525934]
[1760168311145,0.01336,110700.0,110690.0,0.06445934]
[1760168311541,0.01336,110700.0,110690.0,0.42491684]
[1760168312446,0.37416,110700.0,110690.0,0.42491684]
[1760168312645,0.37416,110700.0,110690.0,0.3604575]
[1760168313742,0.01336,110690.0,110680.0,0.06456677]
[1760168313941,0.01336,110690.0,110680.0,0.42502427]
[1760168315050,0.01336,110690.0,110680.0,0.36056493]
[1760168315346,0.01336,110690.0,110680.0,0.4250128]
[1760168315747,0.37416,110690.0,110680.0,0.4250128]
[1760168316242,0.37416,110690.0,110680.0,0.36056493]
[1760168317045,0.8856318,110690.0,110680.0,0.00010743]
[1760168317346,0.79538,110690.0,110680.0,0.00010743]
[1760168319148,0.79538,110690.0,110680.0,0.42406514]
[1760168319540,0.79538,110690.0,110680.0,0.00010743]
[1760168322355,0.39538,110690.0,110680.0,0.00010743]
[1760168322555,0.37416,110690.0,110680.0,0.42406514]
[1760168322749,0.01336,110690.0,110680.0,0.42406514]
[1760168323249,0.01336,110690.0,110680.0,0.00010743]
[1760168323448,0.01336,110690.0,110680.0,0.42406514]
[1760168323449,0.37416,110690.0,110680.0,0.42406514]
[1760168324555,0.37416,110690.0,110680.0,0.48851301]
[1760168324749,0.37416,110690.0,110680.0,0.42406514]
[1760168324950,0.01336,110700.0,110680.0,0.82406514]
[1760168325252,0.01336,110700.0,110690.0,0.42395771]
[1760168326345,0.01336,110700.0,110680.0,0.515615]
[1760168326553,0.01336,110700.0,110690.0,0.42395771]
[1760168327247,0.01336,110700.0,110690.0,0.48840558]
[1760168328151,0.01336,110700.0,110690.0,0.84920558]
[1760168328453,0.01336,110700.0,110690.0,0.78475771]
[1760168328855,0.01336,110700.0,110690.0,0.3608]
[1760168329155,0.01336,110700.0,110690.0,0.42395771]
[1760168331953,0.01336,110700.0,110690.0,0.87500961]
[1760168332155,0.01336,110700.0,110690.0,0.86527366]
[1760168332357,0.01336,110700.0,110690.0,0.93005597]
[1760168332552,0.01336,110700.0,110690.0,0.48874002]
[1760168333653,0.37416,110700.0,110690.0,0.48874002]
[1760168334053,0.37416,110700.0,110690.0,0.42395771]
[1760168334257,0.01336,110700.0,110690.0,0.50447366]
[1760168335054,0.37416,110710.0,110690.0,0.50447366]
[1760168335055,0.01336,110710.0,110690.0,1.35552556]
[1760168335254,0.01336,110720.0,110700.0,0.59471746]
[1760168335454,0.37433,110730.0,110720.0,0.0902275]
[1760168335455,0.01353,110730.0,110720.0,0.0902275]
[1760168335754,0.01353,110730.0,110720.0,0.51418521]
[1760168335959,0.01353,110730.0,110720.0,0.87498521]
[1760168336260,0.01353,110730.0,110720.0,0.51418521]
[1760168337059,0.01353,110740.0,110730.0,0.0902193]
[1760168337260,0.37433,110750.0,110740.0,0.0902112]
[1760168337561,0.3608,110750.0,110740.0,0.57895754]
[1760168337760,0.01353,110760.0,110750.0,0.090203]
[1760168337955,0.01353,110760.0,110750.0,0.51416071]
[1760168338155,0.01353,110760.0,110750.0,0.87496071]
[1760168338650,0.37433,110760.0,110750.0,0.51416071]
[1760168338961,0.01353,110740.0,110730.0,0.51580793]
[1760168339154,0.01353,110740.0,110730.0,0.93976564]
[1760168339354,0.01353,110740.0,110730.0,0.94076564]
[1760168339556,0.77433,110740.0,110730.0,0.48974634]
[1760168339860,0.77433,110740.0,110730.0,0.48874634]
[1760168340260,0.01353,110740.0,110730.0,0.48874634]
[1760168340460,0.01353,110740.0,110730.0,0.48974634]
[1760168340656,0.01353,110740.0,110730.0,0.97996564]
[1760168340860,0.37433,110740.0,110730.0,0.50547366]
[1760168341257,0.77433,110740.0,110730.0,0.08151595]
[1760168341459,0.77433,110740.0,110730.0,0.42495771]
[1760168341658,0.8871512,110740.0,110730.0,0.001]
[1760168341854,0.79694,110740.0,110730.0,0.06568681]
[1760168342063,0.79694,110740.0,110730.0,0.06468681]
[1760168342662,0.79694,110740.0,110730.0,0.48864452]
[1760168343057,0.79694,110740.0,110730.0,0.42395771]
[1760168343058,0.01353,110740.0,110730.0,0.42395771]
[1760168343252,0.01353,110740.0,110730.0,0.87497701]
[1760168343458,0.01353,110740.0,110730.0,0.95549296]
[1760168343655,0.01353,110740.0,110730.0,0.86527366]
[1760168343863,0.01353,110740.0,110730.0,0.95549296]
[1760168344164,0.37433,110740.0,110730.0,0.50447366]
[1760168344356,0.37433,110740.0,110730.0,0.08051595]
[1760168344565,0.37433,110740.0,110730.0,0.42395771]
[1760168346061,0.37433,110740.0,110730.0,0.48854556]
[1760168346062,0.79694,110740.0,110730.0,0.48854556]
[1760168346654,0.79694,110740.0,110730.0,0.48853376]
[1760168347460,0.37433,110740.0,110730.0,0.48853376]
[1760168347661,0.37433,110740.0,110730.0,0.48852765]
[1760168347861,0.37433,110740.0,110730.0,0.42395771]
[1760168348662,0.37433,110740.0,110730.0,0.48852666]
[1760168349056,0.79694,110740.0,110730.0,0.48852666]
[1760168349466,0.79694,110740.0,110730.0,0.06456895]
[1760168350762,0.8871512,110740.0,110730.0,0.06456895]
[1760168350958,0.1263594,110730.0,110720.0,0.06456895]
[1760168351165,0.01353,110710.0,110700.0,0.42395771]
[1760168351465,0.37433,110710.0,110700.0,0.42395771]
[1760168351666,0.39694,110710.0,110700.0,0.50472015]
[1760168352465,0.37433,110710.0,110700.0,0.50472015]
[1760168352662,0.01353,110700.0,110680.0,0.56396544]
[1760168352869,0.01353,110690.0,110680.0,0.56396544]
[1760168353169,0.01253,110690.0,110680.0,0.47370674]
[1760168353365,0.01253,110690.0,110680.0,0.11290674]
[1760168353570,0.01253,110690.0,110680.0,0.20316684]
[1760168353870,0.01253,110690.0,110680.0,0.11390674]
[1760168354071,0.01253,110690.0,110680.0,0.53786445]
[1760168354261,0.37433,110700.0,110680.0,0.98892055]
[1760168354567,0.37433,110700.0,110690.0,0.42395771]
[1760168355670,0.01274,110690.0,110680.0,0.53686445]
[1760168355870,0.37354,110690.0,110680.0,0.53686445]
[1760168356171,0.37433,110700.0,110680.0,1.29766445]
[1760168356367,0.37433,110700.0,110690.0,0.53675702]
[1760168358167,0.01353,110700.0,110690.0,0.62700902]
[1760168358570,0.01353,110700.0,110690.0,0.53675702]
[1760168359670,0.01353,110700.0,110690.0,0.11279931]
[1760168360067,0.01353,110700.0,110690.0,0.53675702]
[1760168363266,0.01353,110700.0,110690.0,0.42395771]
[1760168363470,0.00127648,110700.0,110690.0,0.62758729]
[1760168363670,0.00127648,110700.0,110690.0,0.53733529]
[1760168363869,0.00127648,110700.0,110690.0,0.78475771]
[1760168364069,0.00127648,110700.0,110690.0,0.51420971]
[1760168364272,0.37433,110720.0,110710.0,0.0902357]
[1760168364470,0.37433,110720.0,110710.0,0.62760254]
[1760168365071,0.01353,110720.0,110710.0,0.62760254]
[1760168365366,0.01353,110720.0,110710.0,0.51419341]
[1760168365574,0.01453,110720.0,110710.0,0.51419341]
[1760168365773,0.01453,110720.0,110710.0,0.62763504]
[1760168366066,0.01453,110720.0,110710.0,0.53739934]
[1760168366272,0.01453,110720.0,110710.0,0.53739954]
[1760168366465,0.37533,110720.0,110710.0,0.53739954]
[1760168366868,0.79818,110720.0,110710.0,0.55132638]
[1760168367071,0.79818,110720.0,110710.0,0.43788455]
[1760168367671,0.79718,110720.0,110710.0,0.43788455]
[1760168367873,0.79718,110720.0,110710.0,0.01392684]
[1760168368266,0.79718,110720.0,110700.0,0.53739954]
[1760168368267,0.01274,110710.0,110700.0,0.53739954]
[1760168368468,0.01274,110710.0,110700.0,0.42395771]
[1760168368469,0.39639,110710.0,110700.0,0.42395771]
[1760168368774,0.79639,110710.0,110700.0,0.53741952]
[1760168368965,0.79639,110710.0,110700.0,0.11346181]
[1760168369171,0.03559,110700.0,110690.0,0.53741952]
[1760168369372,0.4866338,110700.0,110690.0,0.11346181]
[1760168369572,0.79639,110700.0,110690.0,0.11346181]
[1760168370176,0.79639,110700.0,110690.0,0.53741952]
[1760168370370,0.37354,110700.0,110690.0,0.53741952]
[1760168370872,0.01274,110700.0,110690.0,0.62767152]
[1760168371074,0.37354,110710.0,110690.0,1.02767152]
[1760168371274,0.37354,110710.0,110700.0,0.53741952]
[1760168371674,0.37354,110710.0,110700.0,0.53741127]
[1760168374775,0.79639,110710.0,110700.0,0.53741127]
[1760168375772,0.8866257,110710.0,110700.0,0.11345356]
[1760168375979,0.03559,110690.0,110680.0,0.00010743]
[1760168376166,0.82808315,110690.0,110680.0,0.00010743]
[1760168377675,0.73783115,110690.0,110680.0,0.00010743]
[1760168378375,0.73783115,110690.0,110680.0,0.08118445]
[1760168378873,0.73783115,110690.0,110680.0,0.00010743]
[1760168380875,0.73434,110690.0,110680.0,0.00010743]
[1760168381275,0.37354,110690.0,110680.0,0.00010743]
[1760168381470,0.75701,110690.0,110680.0,0.00010743]
[1760168381878,0.37354,110690.0,110680.0,0.00010743]
[1760168382081,0.37354,110690.0,110680.0,0.08120417]
[1760168383382,0.37354,110690.0,110680.0,0.00010743]
[1760168383584,0.37354,110690.0,110680.0,0.08120417]
[1760168383783,0.39621,110690.0,110680.0,0.00010743]
[1760168384179,0.39621,110690.0,110680.0,0.08120417]
[1760168384580,0.39621,110690.0,110680.0,0.00010743]
[1760168385275,0.75701,110690.0,110680.0,0.00010743]
[1760168386286,0.75701,110690.0,110680.0,0.06483966]
[1760168386877,0.75701,110690.0,110680.0,0.00010743]
[1760168387083,0.75801,110690.0,110680.0,0.00010743]
[1760168387788,0.75801,110690.0,110680.0,0.06482006]
[1760168388185,0.37454,110690.0,110680.0,0.06482006]
[1760168388781,0.39729,110690.0,110680.0,0.06482006]
[1760168388987,0.39729,110690.0,110680.0,0.00010743]
[1760168389282,0.487542,110690.0,110680.0,0.00010743]
[1760168389486,0.39729,110690.0,110680.0,0.06479278]
[1760168389884,0.39729,110690.0,110680.0,0.06479567]
[1760168390087,0.487542,110690.0,110680.0,0.06479567]
[1760168390290,0.887542,110690.0,110680.0,0.06479567]
[1760168390690,0.79729,110690.0,110680.0,0.06479567]
[1760168391992,0.887542,110690.0,110680.0,0.06479567]
[1760168393086,0.79629,110690.0,110680.0,0.06479567]
[1760168393886,0.79729,110690.0,110680.0,0.06479567]
[1760168394089,0.37454,110690.0,110680.0,0.06479567]
[1760168394391,0.39629,110690.0,110680.0,0.06479567]
[1760168394692,0.886542,110690.0,110680.0,0.06479567]
[1760168394888,0.886542,110690.0,110680.0,0.00010743]
[1760168396891,0.79629,110690.0,110680.0,0.00010743]
[1760168397092,0.8865419,110690.0,110680.0,0.00010743]
[1760168397293,0.79629,110690.0,110680.0,0.00010743]
[1760168397694,0.8875419,110690.0,110680.0,0.00010743]
[1760168398990,0.4875419,110690.0,110680.0,0.00010743]
[1760168400397,0.8875419,110690.0,110680.0,0.00010743]
[1760168400691,0.1267983,110670.0,110660.0,0.06468824]
[1760168400897,0.8483983,110670.0,110660.0,0.06468824]
[1760168401092,0.8483983,110670.0,110660.0,0.85128886]
[1760168401093,0.3608,110670.0,110660.0,0.85128886]
[1760168401292,0.37454,110690.0,110660.0,1.2029092]
[1760168401293,0.001,110690.0,110660.0,1.2029092]
[1760168401496,0.37558,110690.0,110680.0,0.42569059]
[1760168401693,0.01388906,110690.0,110680.0,0.42569059]
[1760168401895,0.00010906,110690.0,110680.0,0.51595069]
[1760168402093,0.00010906,110690.0,110680.0,1.21207256]
[1760168402290,0.37458,110710.0,110690.0,0.0902503]
[1760168402490,0.37458,110710.0,110700.0,0.4257032]
[1760168402810,0.39733,110710.0,110700.0,0.36101246]
[1760168403300,0.37458,110710.0,110700.0,0.36101246]
[1760168403696,0.37458,110710.0,110700.0,0.4257032]
[1760168404000,0.37458,110710.0,110700.0,0.36101246]
[1760168404302,0.37458,110710.0,110700.0,0.4257032]
[1760168404897,0.37458,110710.0,110700.0,0.36101246]
[1760168405099,0.37458,110710.0,110700.0,0.4257032]
[1760168405400,0.39733,110710.0,110700.0,0.06469074]
[1760168405800,0.01378,110700.0,110690.0,0.06469074]
[1760168406396,0.37458,110700.0,110690.0,0.06469074]
[1760168407096,0.03653,110700.0,110690.0,0.06469074]
[1760168407302,0.39733,110700.0,110690.0,0.06469074]
[1760168407702,0.01378,110690.0,110680.0,0.4421092]
[1760168408001,0.01378,110690.0,110680.0,0.36101246]
[1760168408899,0.37458,110690.0,110680.0,0.36101246]
[1760168409193,0.01378,110680.0,110670.0,0.11339807]
[1760168409398,0.01378,110680.0,110670.0,0.36101246]
[1760168409399,0.37458,110680.0,110670.0,0.36101246]
[1760168409594,0.01378,110680.0,110670.0,0.36101246]
[1760168410199,0.37458,110680.0,110670.0,0.36101246]
[1760168411300,0.01378,110690.0,110670.0,1.21208076]
[1760168411505,0.37458,110700.0,110670.0,1.32547473]
[1760168411804,0.37458,110700.0,110690.0,0.44209539]
[1760168412001,0.01378,110700.0,110690.0,0.44209539]
[1760168412203,0.37458,110710.0,110690.0,0.36101246]
[1760168412400,0.37458,110710.0,110700.0,0.08106055]
[1760168412807,0.01378,110700.0,110690.0,0.44207301]
[1760168413404,0.37458,110700.0,110690.0,0.44207301]
[1760168413605,0.39733,110700.0,110690.0,0.36101246]
[1760168414105,0.39733,110700.0,110680.0,0.08106055]
[1760168414304,0.37458,110690.0,110680.0,0.08106055]
[1760168414503,0.01378,110690.0,110680.0,0.08106055]
[1760168414809,0.01378,110690.0,110670.0,0.92547503]
[1760168415005,0.37458,110700.0,110680.0,0.0902588]
[1760168415205,0.37458,110700.0,110690.0,0.44205397]
[1760168415407,0.39742,110700.0,110690.0,0.44205397]
[1760168415600,0.37458,110700.0,110690.0,0.44205397]
[1760168415804,0.01378,110700.0,110690.0,0.44205397]
[1760168416006,0.01378,110700.0,110690.0,1.29310587]
[1760168416203,0.37458,110710.0,110690.0,0.76101246]
[1760168416399,0.39742,110710.0,110700.0,0.08100947]
[1760168416609,0.01346,110700.0,110690.0,0.53227383]
[1760168416806,0.01346,110700.0,110690.0,0.44202193]
[1760168417006,0.01346,110700.0,110690.0,0.08100947]
[1760168417210,0.01346,110700.0,110690.0,0.44202193]
[1760168417402,0.37426,110700.0,110690.0,0.44202193]
[1760168417612,0.01346,110700.0,110690.0,0.44202193]
[1760168418207,0.37426,110700.0,110690.0,0.44202193]
[1760168419107,0.3971,110700.0,110690.0,0.44202193]
[1760168419308,0.37426,110700.0,110690.0,0.44202193]
[1760168419709,0.01346,110700.0,110690.0,0.44202193]
[1760168419907,0.01346,110690.0,110680.0,0.53228063]
[1760168420506,0.01346,110700.0,110680.0,0.93228063]
[1760168420706,0.37426,110700.0,110690.0,0.08100559]
[1760168420904,0.3971,110700.0,110690.0,0.44201805]
[1760168421514,0.01346,110700.0,110690.0,0.44201805]
[1760168421704,0.37426,110700.0,110690.0,0.44201805]
[1760168421905,0.01346,110700.0,110690.0,0.93226995]
[1760168422110,0.37426,110700.0,110690.0,0.84201805]
[1760168422311,0.37426,110700.0,110690.0,0.44201805]
[1760168423111,0.3971,110700.0,110690.0,0.44201805]
[1760168423611,0.0363,110690.0,110680.0,0.44201805]
[1760168423814,0.3971,110690.0,110680.0,0.36101246]
[1760168424010,0.37426,110690.0,110680.0,0.36101246]
[1760168424211,0.01346,110690.0,110680.0,0.44203129]
[1760168424412,0.37426,110690.0,110680.0,0.4420349]
[1760168424614,0.01346,110690.0,110680.0,0.4420349]
[1760168425014,0.01346,110690.0,110680.0,0.532295]
[1760168425211,0.01346,110690.0,110680.0,0.4420349]
[1760168425412,0.01346,110700.0,110680.0,0.932295]
[1760168425717,0.37426,110700.0,110680.0,0.532295]
[1760168426607,0.3971,110690.0,110680.0,0.08102244]
[1760168427114,0.01346,110680.0,110670.0,0.4420349]
[1760168427317,0.37426,110680.0,110670.0,0.36101246]
[1760168429117,0.01346,110690.0,110670.0,1.21208076]
[1760168429316,0.01346,110690.0,110670.0,0.92547883]
[1760168429512,0.01346,110690.0,110680.0,0.0902601]
[1760168429719,0.01346,110700.0,110680.0,0.20365817]
[1760168429912,0.37426,110700.0,110690.0,0.36101246]
[1760168430418,0.01346,110700.0,110690.0,0.36101246]
[1760168430614,0.37458,110710.0,110690.0,0.45126436]
[1760168430809,0.37426,110700.0,110690.0,0.44211403]
[1760168433409,0.01346,110700.0,110690.0,0.44211403]
[1760168433620,0.37426,110700.0,110690.0,0.36101246]
[1760168433814,0.37458,110710.0,110690.0,0.45126366]
[1760168434016,0.37458,110710.0,110690.0,0.44212094]
[1760168434318,0.37426,110700.0,110690.0,0.44212094]
[1760168434515,0.01346,110700.0,110690.0,0.08110848]
[1760168434715,0.3971,110700.0,110690.0,0.44212094]
[1760168434913,0.3971,110700.0,110690.0,0.08110848]
[1760168435115,0.01346,110690.0,110680.0,0.36101246]
[1760168435415,0.3971,110690.0,110680.0,0.11339807]
[1760168436013,0.3971,110690.0,110670.0,0.11339807]
[1760168436319,0.3971,110680.0,110670.0,0.11339807]
[1760168436617,0.3971,110680.0,110670.0,0.47441053]
[1760168437218,0.37426,110680.0,110670.0,0.47441053]
[1760168438117,0.3971,110680.0,110670.0,0.47441053]
[1760168438319,0.3971,110680.0,110670.0,0.36101246]
[1760168438820,0.37426,110680.0,110670.0,0.36101246]
[1760168439222,0.01346,110680.0,110670.0,0.36101246]
[1760168439419,0.01346,110680.0,110670.0,0.53737298]
[1760168439622,0.37426,110680.0,110670.0,0.61847985]
[1760168439921,0.37426,110680.0,110670.0,0.50508178]
[1760168440120,0.3971,110680.0,110670.0,0.50508178]
[1760168440323,0.37426,110680.0,110670.0,0.08110687]
[1760168440523,0.3971,110680.0,110670.0,0.50508178]
[1760168440723,0.37426,110680.0,110670.0,0.50508178]
[1760168440919,0.01346,110680.0,110670.0,0.50508178]
[1760168441119,0.37426,110680.0,110670.0,0.42397491]
[1760168441518,0.37426,110690.0,110670.0,0.53737298]
[1760168441714,0.37426,110690.0,110680.0,0.50507504]
[1760168441918,0.37426,110690.0,110680.0,0.42397491]
[1760168442824,0.3971,110690.0,110680.0,0.42397491]
[1760168443424,0.3981,110690.0,110680.0,0.42397491]
[1760168444022,0.3981,110690.0,110680.0,0.50508964]
[1760168444218,0.01346,110720.0,110680.0,1.26588964]
[1760168444421,0.01346,110720.0,110690.0,0.50508964]
[1760168444422,0.03679,110700.0,110690.0,0.50508964]
[1760168444622,0.75839,110700.0,110690.0,0.42397491]
[1760168445226,0.03633,110690.0,110680.0,0.42397491]
[1760168445422,0.3984901,110690.0,110680.0,0.42397491]
[1760168446121,0.3984901,110690.0,110680.0,0.50508964]
[1760168446425,0.3754601,110690.0,110680.0,0.50508964]
[1760168449827,0.3984901,110690.0,110680.0,0.08111473]
[1760168450022,0.3984901,110690.0,110680.0,0.50508964]
[1760168450023,0.0376901,110690.0,110680.0,0.50508964]
[1760168450228,0.3984901,110690.0,110680.0,0.50508964]
[1760168450428,0.3754601,110690.0,110680.0,0.50508964]
[1760168450629,0.0146601,110690.0,110680.0,0.59534974]
[1760168450824,0.0146601,110690.0,110680.0,0.99534974]
[1760168451027,0.0013601,110690.0,110680.0,0.90508964]
[1760168451221,0.0013601,110690.0,110680.0,1.26588964]
[1760168451429,0.0146601,110690.0,110680.0,1.26588964]
[1760168451830,0.0146601,110690.0,110680.0,1.18477491]
[1760168456145,0.0146601,110690.0,110680.0,1.27503501]
[1760168457342,0.0146601,110690.0,110680.0,1.38843308]
[1760168457943,0.0146601,110690.0,110680.0,0.53737298]
[1760168458344,0.3862724,110690.0,110680.0,0.53737298]
[1760168458641,0.7862724,110690.0,110660.0,0.16129633]
[1760168458849,0.0133,110670.0,110660.0,0.11359529]
[1760168459141,0.0133,110670.0,110660.0,0.20387169]
[1760168459540,0.0133,110680.0,110660.0,0.20387169]
[1760168459741,0.0133,110680.0,110660.0,0.56467169]
[1760168459938,0.3632424,110690.0,110660.0,0.56467169]
[1760168460237,0.3632424,110690.0,110680.0,0.42397491]
[1760168460843,0.0133,110690.0,110680.0,0.42397491]
[1760168461048,0.79713,110690.0,110680.0,0.42397491]
[1760168461248,0.79713,110690.0,110670.0,0.11359529]
[1760168461249,0.03633,110680.0,110670.0,0.11359529]
[1760168461449,0.0133,110670.0,110660.0,0.3618]
[1760168461648,0.0133,110670.0,110660.0,0.78577491]
[1760168462147,0.0133,110670.0,110660.0,0.87505131]
[1760168462746,0.0133,110670.0,110660.0,0.87605131]
[1760168463343,0.0133,110680.0,110660.0,0.87605131]
[1760168463549,0.0133,110680.0,110670.0,0.53756493]
[1760168463749,0.3741,110680.0,110670.0,0.53756493]
[1760168463946,0.0133,110680.0,110670.0,0.53756493]
[1760168464146,0.0133,110680.0,110670.0,0.61870418]
[1760168464345,0.3741,110680.0,110670.0,0.50511416]
[1760168464941,0.3741,110690.0,110670.0,0.50511416]
[1760168465147,0.3741,110690.0,110680.0,0.42397491]
[1760168465649,0.0133,110690.0,110680.0,0.42397491]
[1760168465948,0.3741,110690.0,110680.0,0.42397491]
[1760168466147,0.0133,110690.0,110680.0,0.53756493]
[1760168466544,0.3741,110690.0,110680.0,0.42397491]
[1760168466744,0.3747,110700.0,110680.0,0.42397491]
[1760168467051,0.3747,110700.0,110690.0,0.50511299]
[1760168467444,0.3747,110700.0,110690.0,0.42397491]
[1760168468048,0.3747,110700.0,110680.0,0.56464682]
[1760168468347,0.3747,110700.0,110690.0,0.42397491]
[1760168468550,0.3747,110700.0,110690.0,0.50509578]
[1760168468852,0.39773,110700.0,110690.0,0.50509578]
[1760168469448,0.3747,110700.0,110690.0,0.50509578]
[1760168469652,0.3608,110700.0,110690.0,0.59534778]
[1760168469850,0.3608,110700.0,110690.0,0.50509578]
[1760168470751,0.3741,110700.0,110690.0,0.50509578]
[1760168470947,0.3741,110700.0,110690.0,0.42397491]
[1760168471153,0.0133,110700.0,110690.0,0.42397491]
[1760168471455,0.0133,110700.0,110690.0,0.50509578]
[1760168471655,0.3741,110700.0,110690.0,0.50509578]
[1760168472155,0.0133,110700.0,110690.0,0.50509578]
[1760168472547,0.0133,110700.0,110690.0,0.42397491]
[1760168472948,0.3741,110710.0,110690.0,0.51422651]
[1760168473151,0.0133,110730.0,110700.0,1.69899362]
[1760168473354,0.39228906,110790.0,110700.0,1.69899362]
[1760168473355,1.8608,110800.0,110740.0,0.0902046]
[1760168473660,0.0133,110760.0,110750.0,0.15506189]
[1760168473955,0.2341,110780.0,110770.0,0.0901868]
[1760168474151,0.03633,110780.0,110760.0,0.3608]
[1760168474357,0.0133,110760.0,110750.0,0.0901962]
[1760168474554,0.0133,110760.0,110750.0,0.4509962]
[1760168474749,0.0133,110760.0,110750.0,0.87497111]
[1760168474958,0.0143,110760.0,110750.0,0.87497111]
[1760168475752,0.0153,110760.0,110750.0,0.87497111]
[1760168476352,0.0153,110760.0,110750.0,0.93981853]
[1760168476550,0.0153,110760.0,110750.0,0.87497111]
[1760168478552,0.0133,110770.0,110760.0,0.0901949]
[1760168478856,0.0133,110770.0,110760.0,0.87496981]
[1760168479159,0.0133,110780.0,110770.0,0.0901868]
[1760168479453,0.01299,110800.0,110780.0,0.0901787]
[1760168479655,0.23379,110800.0,110790.0,1.23574541]
[1760168479855,0.23379,110800.0,110790.0,0.90477491]
[1760168480062,0.23379,110800.0,110790.0,0.99494541]
[1760168480559,1.73379,110800.0,110790.0,0.99494541]
[1760168481156,1.73679,110800.0,110790.0,0.99494541]
[1760168482260,2.15849,110800.0,110790.0,0.54397491]
[1760168482556,2.16049,110800.0,110790.0,0.90477491]
[1760168482765,2.52129,110800.0,110790.0,0.54397491]
[1760168482955,1.76049,110800.0,110790.0,0.54397491]
[1760168483357,1.73879,110800.0,110790.0,0.99494541]
[1760168483760,2.13879,110800.0,110790.0,0.90477491]
[1760168483950,1.73879,110800.0,110790.0,0.99494541]
[1760168485057,1.51799,110800.0,110790.0,1.39494541]
[1760168485258,1.51799,110800.0,110790.0,0.99494541]
[1760168487359,1.51799,110800.0,110790.0,0.90477491]